bitfinex-derivatives/quotes_BNBF0:USTF0_20250424
["timestamp","ask_amount","ask_price","bid_price","bid_amount"]
[1745484872369,1.22371545,595.37,594.25,1.208]
[1745484874074,1.22371545,596.17,594.25,1.208]
[1745484876877,0.29257835,596.16,594.25,1.208]
[1745484877777,1.22371545,595.7,594.25,1.208]
[1745484881277,1.22371545,595.36,594.25,1.208]
[1745484882883,0.29273709,595.35,594.25,1.208]
[1745484888286,0.29273709,595.35,594.26,1.381]
[1745484890790,1.22371545,596.14,594.26,1.381]
[1745484892091,0.29258819,596.13,594.26,1.381]
[1745484893192,0.29258819,596.13,594.27,1.31]
[1745484893692,1.22371545,595.76,594.27,1.31]
[1745484894092,0.29265093,595.75,594.27,1.31]
[1745484895587,0.29265093,595.75,594.27,2.956]
[1745484896689,1.22371545,595.62,594.27,2.956]
[1745484897997,1.22371545,595.62,594.27,3.972]
[1745484899899,0.29265093,595.75,594.27,3.972]
[1745484902500,1.22371545,595.66,594.27,3.972]
[1745484904595,0.29259434,595.65,594.27,3.972]
[1745484905101,1.22371545,595.54,594.27,3.972]
[1745484906101,0.2926091,595.53,594.27,3.972]
[1745484908899,0.29259188,595.52,594.27,3.972]
[1745484911701,1.22371545,595.8,594.27,3.972]
[1745484912001,0.29260664,595.51,594.27,3.972]
[1745484912301,1.22371545,595.8,594.27,3.972]
[1745484913004,0.29265339,595.79,594.27,3.972]
[1745484916006,1.22371545,595.2,594.27,3.972]
[1745484918205,1.22371545,595.21,594.27,3.972]
[1745484920503,1.22371545,595.48,594.27,3.972]
[1745484922109,0.2926337,595.47,594.27,3.972]
[1745484923610,1.22371545,595.48,594.27,3.972]
[1745484923910,1.22371545,595.58,594.27,3.972]
[1745484924910,0.29260418,595.57,594.27,3.972]
[1745484926713,1.22371545,595.66,594.27,3.972]
[1745484927112,0.29259434,595.56,594.27,3.972]
[1745484927613,1.22371545,595.66,594.27,3.972]
[1745484928813,0.2925599,595.65,594.27,3.972]
[1745484929713,1.22371545,595.7,594.27,3.972]
[1745484930209,1.22371545,595.7,594.28,0.33625739]
[1745484930910,1.22371545,595.7,594.29,0.33625739]
[1745484931112,1.22371545,595.7,594.3,1.55126481]
[1745484931315,1.22371545,595.7,594.31,1.55126481]
[1745484931515,1.22371545,595.7,594.32,1.55126481]
[1745484931708,1.22371545,595.7,594.33,1.55126481]
[1745484931914,1.22371545,595.7,594.34,1.55126481]
[1745484932113,1.22371545,595.7,594.35,2.19637622]
[1745484932309,1.22371545,595.7,594.36,1.86011883]
[1745484932509,1.22371545,595.7,594.37,1.8875222]
[1745484932715,1.22371545,595.7,594.38,1.86011883]
[1745484933017,1.22371545,595.7,594.39,1.86011883]
[1745484933211,0.29242837,595.96,594.4,1.55126481]
[1745484933414,1.22371545,596.28,594.41,2.19637622]
[1745484933613,1.22371545,596.28,594.42,1.86011883]
[1745484933807,1.22371545,596.28,594.41,0.33625739]
[1745484933808,1.22371545,596.28,594.43,2.19637622]
[1745484934015,0.29233134,596.27,594.44,1.86011883]
[1745484934314,0.29233134,596.27,594.45,2.90015546]
[1745484934513,0.29233134,596.27,594.46,2.19341285]
[1745484934715,0.29233134,596.27,594.46,0.33625739]
[1745484934917,0.29233134,596.27,594.45,1.043]
[1745484935817,1.22371545,596.28,594.45,1.043]
[1745484937017,0.29246893,596.27,594.45,1.043]
[1745484938919,0.29246893,596.27,594.46,1.039]
[1745484941723,1.22371545,596.63,594.46,1.039]
[1745484942924,0.29239766,596.62,594.46,1.039]
[1745484943825,1.22371545,596.47,594.46,1.039]
[1745484944922,0.29238783,596.46,594.46,1.039]
[1745484946027,1.22371545,596.38,594.46,1.039]
[1745484948528,1.22371545,596.57,594.46,1.039]
[1745484949128,0.29237555,596.56,594.46,1.039]
[1745484950728,1.22371545,596.57,594.46,1.039]
[1745484951028,0.29240257,596.55,594.46,1.039]
[1745484953029,1.22371545,596.48,594.46,1.039]
[1745484956330,1.22371545,596.2,594.46,1.039]
[1745484958724,1.22371545,596.0,594.47,1.464]
[1745484961037,0.29247138,595.99,594.47,1.464]
[1745484961335,0.29247138,595.99,594.48,1.649]
[1745484961836,1.22371545,596.0,594.48,1.649]
[1745484963740,1.22371545,596.61,594.48,1.649]
[1745484966232,1.22371545,596.55,594.48,1.649]
[1745484969038,1.22371545,595.92,594.48,1.649]
[1745484972043,1.22371545,596.01,594.48,1.649]
[1745484973640,1.22371545,596.01,594.49,1.59]
[1745484975048,1.22371545,595.94,594.49,1.59]
[1745484977149,1.22371545,595.95,594.49,1.59]
[1745484979351,1.22371545,596.46,594.49,1.59]
[1745484982348,1.22371545,596.35,594.49,1.59]
[1745484982751,0.29245049,596.34,594.49,1.59]
[1745484983755,1.22371545,596.35,594.49,1.59]
[1745484985150,0.29242592,596.34,594.5,1.495]
[1745484985457,1.22371545,595.74,594.5,1.495]
[1745484987858,1.22371545,595.6,594.5,1.495]
[1745484989556,1.22371545,595.69,594.5,1.495]
[1745484991659,0.29249228,595.73,594.5,1.495]
[1745484992662,1.22371545,595.98,594.51,0.30881494]
[1745484992961,0.29240135,595.85,594.51,0.30881494]
[1745484993158,1.22371545,595.98,594.51,0.30881494]
[1745484993355,1.22371545,595.98,594.52,1.168]
[1745484993558,1.22371545,595.98,594.53,0.30881494]
[1745484994059,0.29239398,595.97,594.53,0.30881494]
[1745484994562,0.29239398,595.97,594.54,0.33604816]
[1745484994759,0.29239398,595.97,594.55,0.30875095]
[1745484995161,0.29239398,595.97,594.54,0.30875095]
[1745484995456,1.22371545,596.0,594.55,1.86340984]
[1745484995761,1.22371545,596.0,594.56,2.19935606]
[1745484996061,1.22371545,596.0,594.57,1.86316036]
[1745484996261,1.22371545,596.0,594.58,1.89035563]
[1745484996461,1.22371545,596.0,594.59,1.86304623]
[1745484996661,1.22371545,596.0,594.6,1.86304623]
[1745484996863,1.22371545,596.0,594.61,1.55440941]
[1745484997058,1.22371545,596.0,594.62,1.86304623]
[1745484997359,0.29232889,596.11,594.63,2.19899245]
[1745484997566,0.29232889,596.11,594.64,1.86304623]
[1745484997764,0.29232889,596.11,594.65,1.86304623]
[1745484997965,0.29232889,596.11,594.66,1.80162027]
[1745484998264,0.29232889,596.11,594.67,1.51980488]
[1745484998466,0.29232889,596.11,594.68,0.33594622]
[1745484998664,0.29232889,596.11,594.69,0.30870621]
[1745484998966,1.22371545,596.26,594.7,0.33594622]
[1745484999566,1.22371545,596.26,594.71,0.30872279]
[1745484999766,1.22371545,596.26,594.61,0.33594622]
[1745485000068,0.29230924,596.25,594.62,1.79913964]
[1745485000264,0.29230924,596.25,594.63,1.18190986]
[1745485000461,0.29230924,596.25,594.64,0.30872145]
[1745485000664,0.29230924,596.25,594.64,0.33594622]
[1745485000961,0.29230924,596.25,594.65,0.30872145]
[1745485001162,0.29230924,596.25,594.63,0.33594622]
[1745485001466,0.29230924,596.25,594.61,0.33594622]
[1745485005167,0.29230924,596.25,594.62,0.30876658]
[1745485006070,0.29230924,596.25,594.63,0.33594622]
[1745485006272,0.29230924,596.25,594.64,0.30876658]
[1745485006469,0.29230924,596.25,594.65,0.33594622]
[1745485006663,0.29230924,596.25,594.66,0.30876658]
[1745485007365,0.29230924,596.25,594.67,0.33594622]
[1745485007869,1.22371545,596.4,594.67,0.33594622]
[1745485008065,1.22371545,596.4,594.61,0.33594622]
[1745485008266,1.22371545,596.4,594.62,1.18058022]
[1745485008471,1.22371545,596.4,594.63,1.18058022]
[1745485008670,1.22371545,596.4,594.64,1.51652644]
[1745485008873,1.22371545,596.4,594.65,1.18058022]
[1745485009071,1.22371545,596.4,594.64,0.33594622]
[1745485009072,0.29229697,596.39,594.66,1.18058022]
[1745485009270,0.29229697,596.39,594.67,1.51652644]
[1745485009467,0.29229697,596.39,594.68,1.18058022]
[1745485009668,0.29229697,596.39,594.69,1.18058022]
[1745485009870,0.29229697,596.39,594.7,0.87185327]
[1745485010069,0.29229697,596.39,594.71,1.18058022]
[1745485010268,0.29229697,596.39,594.72,0.30872695]
[1745485010471,0.29229697,596.39,594.72,0.33594622]
[1745485010770,0.29229697,596.39,594.6,1.04]
[1745485010771,1.22371545,596.46,594.71,0.33594622]
[1745485010966,0.29226383,596.38,594.72,0.30867075]
[1745485011167,0.29226383,596.38,594.62,0.30867075]
[1745485011367,1.22371545,596.46,594.63,1.51551141]
[1745485011567,1.22371545,596.46,594.64,1.17956519]
[1745485011769,1.22371545,596.46,594.65,0.30867075]
[1745485011971,1.22371545,596.46,594.64,0.30867075]
[1745485012172,0.29227119,596.45,594.65,0.30867075]
[1745485012371,0.29227119,596.45,594.65,0.33594622]
[1745485012569,0.29227119,596.45,594.66,0.30867075]
[1745485012874,0.29227119,596.45,594.67,0.33594622]
[1745485013074,0.29227119,596.45,594.68,0.30867075]
[1745485013474,0.29227119,596.45,594.69,0.33594622]
[1745485013674,0.29227119,596.45,594.7,0.30867075]
[1745485013970,1.22371545,596.77,594.71,0.33594622]
[1745485014175,0.29222824,596.44,594.71,0.33594622]
[1745485014375,1.22371545,596.77,594.72,0.30867075]
[1745485014775,1.22371545,596.77,594.6,1.04]
[1745485015077,0.29225401,596.76,594.6,1.04]
[1745485015375,0.29225401,596.76,594.61,0.3360344]
[1745485015975,0.29225401,596.76,594.62,0.3360344]
[1745485016176,0.29225401,596.76,594.62,1.324]
[1745485016579,0.29225401,596.76,594.63,0.3360344]
[1745485016777,1.22371545,596.78,594.63,0.3360344]
[1745485017477,1.22371545,596.78,594.64,0.3360344]
[1745485017784,1.22371545,596.78,594.62,1.324]
[1745485018077,0.29227855,596.77,594.62,1.324]
[1745485018274,0.29227855,596.77,594.63,0.33603241]
[1745485018773,0.29227855,596.77,594.62,1.324]
[1745485019878,1.22371545,596.89,594.62,1.324]
[1745485020178,1.22371545,596.89,594.63,0.3360464]
[1745485020580,1.22371545,596.89,594.64,0.3360464]
[1745485020974,0.29225278,596.88,594.64,0.3360464]
[1745485021378,0.29225278,596.88,594.62,1.324]
[1745485021576,0.29225278,596.88,594.65,1.48]
[1745485021979,0.29225278,596.88,594.65,2.939]
[1745485022680,2.08201588,597.69,594.65,2.939]
[1745485022681,1.22371545,596.79,594.65,2.939]
[1745485025282,0.29230065,596.87,594.65,2.939]
[1745485025283,1.22371545,596.67,594.65,2.939]
[1745485025983,0.29233011,596.66,594.65,2.939]
[1745485028585,1.22371545,596.07,594.65,2.939]
[1745485028985,0.2924038,596.06,594.65,2.939]
[1745485031790,1.22371545,596.63,594.65,2.939]
[1745485033091,1.22371545,596.36,594.65,2.939]
[1745485035495,1.22371545,596.33,594.65,2.939]
[1745485037698,1.22371545,596.18,594.65,2.939]
[1745485040795,1.22371545,596.05,594.65,2.939]
[1745485042596,1.22371545,596.05,594.65,4.5]
[1745485043196,1.22371545,596.49,594.65,4.5]
[1745485043398,1.22371545,596.49,594.66,0.30874308]
[1745485044398,1.22371545,596.49,594.65,3.02]
[1745485044599,1.22371545,596.49,594.66,0.30869545]
[1745485045500,1.22371545,596.59,594.66,0.30869545]
[1745485045694,1.22371545,596.59,594.66,1.80369545]
[1745485045997,1.22371545,596.59,594.67,0.30869545]
[1745485047699,1.22371545,596.59,594.67,1.33269545]
[1745485047898,1.22371545,596.59,594.68,0.30869545]
[1745485048095,1.22371545,596.59,594.67,1.024]
[1745485048299,1.22371545,596.59,594.69,0.33599085]
[1745485048498,1.22371545,596.59,594.7,1.18250751]
[1745485048701,1.22371545,596.51,594.71,1.18250751]
[1745485048899,1.22371545,596.51,594.72,1.78697267]
[1745485049100,1.22371545,596.51,594.73,2.12296352]
[1745485049299,1.22371545,596.51,594.74,1.18250751]
[1745485049500,1.22371545,596.51,594.75,1.18250751]
[1745485049795,1.22371545,596.51,594.76,1.18245459]
[1745485050000,1.22371545,596.51,594.77,0.87381544]
[1745485050295,2.08201588,596.64,594.75,0.33599085]
[1745485050296,1.22371545,596.48,594.78,0.87381544]
[1745485050594,1.22371545,596.48,594.75,0.33599085]
[1745485050595,1.22371545,596.48,594.79,0.87381544]
[1745485050803,1.22371545,596.48,594.79,0.33599085]
[1745485051201,1.22371545,596.48,594.79,1.71099085]
[1745485051699,1.22371545,596.48,594.8,0.33599085]
[1745485052502,1.22371545,596.77,594.81,0.33599085]
[1745485053401,1.22371545,596.77,594.79,1.375]
[1745485054704,1.22371545,596.88,594.79,1.375]
[1745485057307,1.22371545,596.62,594.79,1.375]
[1745485060703,2.08201588,597.42,594.79,1.375]
[1745485060704,1.22371545,596.63,594.79,1.375]
[1745485063413,1.22371545,596.42,594.79,1.375]
[1745485065912,1.22371545,596.81,594.79,1.375]
[1745485068617,1.22371545,596.87,594.79,1.375]
[1745485071617,1.22371545,596.76,594.79,1.375]
[1745485073515,1.22371545,596.59,594.79,1.375]
[1745485074423,1.22371545,596.59,594.79,2.57]
[1745485076022,1.22371545,596.58,594.79,2.57]
[1745485078726,2.08201588,597.01,594.79,2.57]
[1745485078727,1.22371545,596.54,594.79,2.57]
[1745485082030,1.22371545,596.57,594.79,2.57]
[1745485084026,2.08201588,596.45,594.79,2.57]
[1745485084233,1.22371545,596.31,594.79,2.57]
[1745485086432,1.22371545,596.52,594.79,2.57]
[1745485087233,1.22371545,596.52,594.79,4.107]
[1745485089336,1.22371545,596.47,594.79,4.107]
[1745485091438,1.22371545,596.01,594.79,4.107]
[1745485096437,1.22371545,596.01,594.79,5.338]
[1745485097241,1.22371545,596.26,594.79,5.338]
[1745485100237,1.22371545,596.1,594.79,5.338]
[1745485102242,1.22371545,596.43,594.79,5.338]
[1745485104745,1.22371545,596.38,594.79,5.338]
[1745485107350,1.22371545,596.43,594.79,5.338]
[1745485110153,1.22371545,597.19,594.79,5.338]
[1745485112553,1.22371545,596.82,594.79,5.338]
[1745485115956,1.22371545,596.24,594.79,5.338]
[1745485118858,1.22371545,595.92,594.79,5.338]
[1745485120860,1.22371545,596.24,594.79,5.338]
[1745485123958,1.22371545,596.71,594.79,5.338]
[1745485126460,1.22371545,596.72,594.79,5.338]
[1745485129271,1.22371545,596.12,594.79,5.338]
[1745485132771,1.22371545,595.98,594.79,5.338]
[1745485135178,1.22371545,596.79,594.79,5.338]
[1745485137573,1.22371545,596.32,594.79,5.338]
[1745485140074,1.22371545,596.35,594.79,5.338]
[1745485150782,1.22371545,595.99,594.79,5.338]
[1745485152982,1.22371545,596.31,594.79,5.338]
[1745485154783,1.22371545,596.21,594.79,5.338]
[1745485157385,1.22371545,595.95,594.79,5.338]
[1745485160690,1.22371545,595.99,594.79,5.338]
[1745485163290,2.08201588,596.83,594.79,5.338]
[1745485163291,1.22371545,596.14,594.79,5.338]
[1745485166189,1.22371545,596.27,594.79,5.338]
[1745485167493,1.22371545,596.27,594.8,0.33597041]
[1745485167990,1.22371545,596.27,594.81,0.33597041]
[1745485168788,1.22371545,596.27,593.94,0.33597041]
[1745485168992,1.22371545,596.27,593.95,0.91436002]
[1745485169188,1.22371545,596.27,593.96,1.25033043]
[1745485169393,1.22371545,596.26,594.15,1.05933196]
[1745485169693,1.22371545,596.26,594.16,0.91436002]
[1745485169894,1.22371545,596.26,594.17,0.91436002]
[1745485170189,1.22371545,596.26,594.18,0.91436002]
[1745485170393,1.22371545,596.26,594.19,1.25033043]
[1745485170590,1.22371545,596.26,594.2,0.91436002]
[1745485170795,1.22371545,596.26,594.21,0.91436002]
[1745485171090,1.22371545,596.26,594.22,2.01236002]
[1745485171292,1.22371545,596.26,594.23,0.91436002]
[1745485171492,1.22371545,596.26,594.24,1.25033043]
[1745485171698,1.22371545,596.26,594.25,0.91445289]
[1745485171897,1.22371545,596.26,594.26,1.2504233]
[1745485172197,1.22371545,596.26,594.27,0.91452988]
[1745485172390,2.08201588,597.26,594.28,0.91452988]
[1745485172391,1.22371545,596.32,594.28,0.91452988]
[1745485172594,1.22371545,596.32,594.29,0.91452988]
[1745485172791,1.22371545,596.32,594.3,0.91452988]
[1745485172991,1.22371545,596.32,594.31,0.91452988]
[1745485173291,1.22371545,596.32,594.32,0.91452988]
[1745485173492,1.22371545,596.32,594.33,0.94190314]
[1745485173694,1.22371545,596.32,594.34,0.91457342]
[1745485173899,1.22371545,596.32,594.35,1.25065013]
[1745485174094,1.22371545,596.32,594.36,0.30874699]
[1745485174295,1.22371545,596.32,594.37,0.60595335]
[1745485174599,1.22371545,596.32,594.38,0.94200473]
[1745485174802,1.22371545,596.32,594.39,0.60592802]
[1745485175001,1.22371545,596.32,594.4,0.60592802]
[1745485175301,1.22371545,596.18,594.41,0.60592802]
[1745485175502,1.22371545,596.18,594.42,0.60592802]
[1745485175702,1.22371545,596.18,594.43,0.60592802]
[1745485175901,1.22371545,596.18,594.44,0.60592802]
[1745485176102,1.22371545,596.18,594.45,0.94200473]
[1745485176299,1.22371545,596.18,594.46,0.60592802]
[1745485176500,1.22371545,596.18,594.47,0.33607671]
[1745485176701,1.22371545,596.18,594.26,0.33607671]
[1745485176899,1.22371545,596.18,594.27,0.60586949]
[1745485177098,1.22371545,596.18,594.28,0.60586949]
[1745485177299,1.22371545,597.15,594.29,0.60586949]
[1745485177500,1.22371545,597.15,594.3,0.91465855]
[1745485177699,1.22371545,597.15,594.31,0.60586949]
[1745485178003,1.22371545,597.15,594.32,0.9419462]
[1745485178304,1.22371545,597.15,594.33,0.9419462]
[1745485178505,1.22371545,597.15,594.34,0.60586949]
[1745485178803,1.22371545,596.82,594.33,0.33607671]
[1745485179104,1.22371545,596.82,594.34,0.94192338]
[1745485179303,1.22371545,596.82,594.35,0.94192338]
[1745485179503,1.22371545,596.82,594.36,0.60584667]
[1745485179701,1.22371545,596.82,594.37,0.33607671]
[1745485179902,1.22371545,596.82,594.38,0.60584667]
[1745485180103,1.22371545,596.82,594.39,0.33607671]
[1745485180304,1.22371545,596.82,594.4,0.94192338]
[1745485180505,1.22371545,596.82,594.41,0.60584667]
[1745485180701,1.22371545,596.99,594.42,0.6058542]
[1745485180900,1.22371545,596.99,594.43,0.6058542]
[1745485181204,1.22371545,596.99,594.44,0.94193091]
[1745485181401,1.22371545,596.99,594.45,0.6058542]
[1745485181705,1.22371545,596.99,594.46,0.33607671]
[1745485181907,1.22371545,596.99,594.47,0.6058542]
[1745485182200,1.22371545,596.99,594.48,0.33607671]
[1745485182404,1.22371545,596.99,594.49,0.6058542]
[1745485182604,1.22371545,596.99,594.5,0.33607671]
[1745485182805,1.22371545,596.99,594.51,0.6058542]
[1745485183003,1.22371545,596.99,594.52,0.91458315]
[1745485183201,1.22371545,596.87,594.53,1.25065986]
[1745485183405,1.22371545,596.87,594.54,0.91458315]
[1745485183605,1.22371545,596.87,594.55,0.91458315]
[1745485183804,1.22371545,596.87,594.56,0.91458315]
[1745485184001,1.22371545,596.87,594.57,0.91458315]
[1745485184207,1.22371545,596.87,594.58,1.25065986]
[1745485184402,1.22371545,596.87,594.59,0.91439926]
[1745485184605,1.22371545,596.87,594.6,0.91436402]
[1745485184806,1.22371545,596.87,594.61,0.91436402]
[1745485185005,1.22371545,596.87,594.62,0.91436402]
[1745485185206,1.22371545,596.87,594.63,0.91436402]
[1745485185406,1.22371545,596.87,594.64,0.91436402]
[1745485185706,1.22371545,596.87,594.65,0.91436402]
[1745485186006,2.08201588,598.32,594.64,0.33607671]
[1745485186007,1.22371545,596.44,594.66,0.91436402]
[1745485186207,1.22371545,596.44,594.67,0.91415559]
[1745485186407,1.22371545,596.44,594.68,0.64475985]
[1745485186603,1.22371545,596.44,594.69,0.30868314]
[1745485187408,1.22371545,596.44,594.7,0.33607671]
[1745485187904,1.22371545,596.44,594.71,0.33607671]
[1745485188308,1.22371545,596.44,594.25,1.653]
[1745485188510,1.22371545,596.44,594.26,0.6054154]
[1745485188805,1.22371545,596.21,594.27,0.6054154]
[1745485189012,1.22371545,596.21,594.28,0.94150663]
[1745485189305,1.22371545,596.21,594.29,0.6054154]
[1745485189511,1.22371545,596.21,594.3,0.33609123]
[1745485189707,1.22371545,596.21,594.31,0.6054154]
[1745485189907,1.22371545,596.21,594.32,0.60543279]
[1745485190109,1.22371545,596.21,594.33,0.60543279]
[1745485190518,1.22371545,596.21,594.34,1.46909123]
[1745485190706,1.22371545,596.21,594.35,0.60543279]
[1745485191310,1.22371545,596.21,594.36,0.33609123]
[1745485191912,1.22371545,596.21,594.37,0.30877729]
[1745485192113,2.08201588,597.07,594.38,0.33609123]
[1745485192513,2.08201588,597.07,594.39,0.3087725]
[1745485193014,2.08201588,597.07,594.4,0.33609123]
[1745485193212,2.08201588,597.07,594.41,0.3087725]
[1745485193412,2.08201588,597.07,594.41,0.64486373]
[1745485193610,2.08201588,597.07,594.42,0.3087725]
[1745485194314,2.08201588,597.07,594.35,0.3087725]
[1745485194510,2.08201588,597.07,594.36,0.33613411]
[1745485194711,2.08201588,597.07,594.37,0.33613411]
[1745485195112,1.22371545,596.18,594.37,0.33613411]
[1745485195510,1.22371545,596.18,594.38,0.33613411]
[1745485196317,1.22371545,596.18,594.35,0.33613411]
[1745485198018,1.22371545,596.69,594.36,0.60565552]
[1745485198211,1.22371545,596.69,594.35,0.33613411]
[1745485198517,1.22371545,596.69,594.36,0.33613411]
[1745485199016,1.22371545,596.69,594.35,0.33613411]
[1745485200418,1.22371545,596.69,594.36,1.232]
[1745485200914,1.22371545,596.67,594.37,0.94171947]
[1745485201115,1.22371545,596.67,594.37,0.33613411]
[1745485203620,5.05632428,597.64,594.37,0.33613411]
[1745485203621,1.22371545,596.89,594.37,0.33613411]
[1745485205623,1.22371545,596.89,594.38,1.578]
[1745485206124,1.22371545,596.93,594.38,1.578]
[1745485209027,1.22371545,596.91,594.38,1.578]
[1745485209624,1.22371545,596.91,594.39,1.414]
[1745485212129,1.22371545,596.91,594.4,0.30886758]
[1745485212629,1.22371545,596.91,594.39,1.414]
[1745485212830,1.22371545,596.19,594.4,0.30886855]
[1745485213425,1.22371545,596.19,594.39,1.414]
[1745485215833,1.22371545,596.32,594.39,1.414]
[1745485218536,1.22371545,596.17,594.39,1.414]
[1745485221539,1.22371545,596.1,594.39,1.414]
[1745485223640,1.22371545,595.91,594.39,1.414]
[1745485227143,1.22371545,595.89,594.39,1.414]
[1745485230743,1.22371545,595.86,594.39,1.414]
[1745485233242,1.22371545,595.91,594.39,1.414]
[1745485235354,1.22371545,595.7,594.39,1.414]
[1745485235545,1.22371545,595.7,594.34,1.133]
[1745485237847,1.22371545,595.83,594.34,1.133]
[1745485239546,1.22371545,595.83,593.88,1.067]
[1745485239752,1.22371545,595.8,593.89,0.91254857]
[1745485239944,1.22371545,595.8,593.9,1.24887039]
[1745485240148,1.22371545,595.8,593.91,0.91254857]
[1745485240349,1.22371545,595.8,593.92,0.91254857]
[1745485240549,1.22371545,595.8,593.93,0.91254857]
[1745485240750,1.22371545,595.8,593.94,0.91254857]
[1745485240951,1.22371545,595.8,593.95,0.91254857]
[1745485241145,1.22371545,595.8,593.96,0.60355057]
[1745485241450,1.22371545,595.8,593.97,0.64531921]
[1745485241650,1.22371545,595.8,593.98,0.30899739]
[1745485241950,1.025,596.43,593.99,0.33632182]
[1745485241951,1.22371545,595.78,593.99,0.33632182]
[1745485242550,1.22371545,595.78,593.89,0.33632182]
[1745485242745,1.22371545,595.78,593.9,0.91260909]
[1745485242950,1.22371545,595.78,593.91,0.91260909]
[1745485243149,1.22371545,595.78,593.92,1.24893091]
[1745485243448,1.22371545,595.78,593.93,0.91260909]
[1745485243649,1.22371545,595.78,593.94,0.91260909]
[1745485243851,1.22371545,595.78,593.95,1.24893091]
[1745485244046,1.22371545,595.78,593.96,0.91260909]
[1745485244356,1.22371545,595.78,593.95,0.33632182]
[1745485244357,1.22371545,595.78,593.97,1.24883424]
[1745485244550,1.22371545,595.78,593.98,0.91251242]
[1745485244850,1.22371545,595.78,593.99,0.91251242]
[1745485245050,1.22371545,595.81,594.0,0.91251242]
[1745485245244,1.22371545,595.81,594.01,0.93992399]
[1745485245450,1.22371545,595.81,594.02,0.91251242]
[1745485245650,1.22371545,595.81,594.03,0.91251242]
[1745485245847,1.22371545,595.81,594.04,0.91249238]
[1745485246051,1.22371545,595.81,594.05,1.2488142]
[1745485246248,1.22371545,595.81,594.06,0.91249238]
[1745485246451,1.22371545,595.81,594.07,0.91249238]
[1745485246755,1.22371545,595.81,594.08,1.2488142]
[1745485246955,1.22371545,595.81,594.09,0.91249238]
[1745485247154,1.22371545,595.81,594.1,1.2488142]
[1745485247349,1.22371545,595.81,594.11,0.91249238]
[1745485247549,1.22371545,595.81,594.12,0.91249238]
[1745485247754,1.22371545,595.81,594.13,0.93992399]
[1745485247951,1.22371545,595.81,594.14,0.30889021]
[1745485248354,1.22371545,595.81,594.15,0.33632182]
[1745485248554,1.22371545,595.81,594.16,0.30889021]
[1745485248755,1.22371545,595.81,594.17,0.60489889]
[1745485248952,1.22371545,596.23,594.18,1.25011092]
[1745485249152,0.213,596.0,594.19,0.30889021]
[1745485249448,0.213,596.0,594.2,0.33632182]
[1745485249751,0.213,596.0,594.21,0.30889021]
[1745485249952,1.239,596.0,594.21,0.33632182]
[1745485250254,1.239,596.0,594.22,0.91388916]
[1745485250455,1.239,596.0,594.23,1.25021098]
[1745485250655,1.239,596.0,594.24,0.60500436]
[1745485250853,1.239,596.0,594.25,0.33632182]
[1745485251055,1.239,596.0,594.26,0.60500436]
[1745485251558,1.239,596.0,594.27,0.33632182]
[1745485251757,1.239,596.0,594.28,0.60500436]
[1745485252056,1.239,596.0,594.29,0.33632182]
[1745485252257,1.239,596.0,594.3,0.60500436]
[1745485252557,1.239,596.0,594.31,0.33632182]
[1745485252757,1.239,596.0,594.32,0.60500436]
[1745485253258,1.239,596.0,594.33,0.33632182]
[1745485253458,1.239,596.0,594.34,0.60500436]
[1745485253851,1.239,596.0,594.35,0.33632182]
[1745485254055,1.239,596.0,594.36,0.60500436]
[1745485254258,1.239,596.0,594.37,0.33632182]
[1745485254757,1.239,596.0,594.38,0.33632182]
[1745485255660,1.239,596.0,594.39,0.60581225]
[1745485255959,1.239,596.0,594.4,0.94213407]
[1745485256159,1.239,596.0,594.41,0.60581225]
[1745485256359,1.239,596.0,594.42,0.60581225]
[1745485256560,1.239,596.0,594.43,0.60581225]
[1745485256760,1.239,596.0,594.44,0.9145903]
[1745485256954,1.239,596.0,594.45,0.9145903]
[1745485257159,1.239,596.0,594.46,0.9145903]
[1745485257356,1.239,596.0,594.47,1.25091212]
[1745485257561,1.239,596.0,594.48,1.25091212]
[1745485257757,1.239,596.0,594.49,0.9145903]
[1745485257958,1.239,596.0,594.5,0.94213407]
[1745485258158,1.239,596.0,594.51,0.91445403]
[1745485258358,1.239,596.0,594.52,1.25077585]
[1745485258562,1.239,596.0,594.53,0.91445403]
[1745485258760,1.239,596.0,594.54,1.25077585]
[1745485258959,1.239,596.0,594.55,0.91445403]
[1745485259159,1.239,596.0,594.56,1.25077585]
[1745485259362,1.239,596.0,594.57,0.91445403]
[1745485259664,1.239,596.0,594.58,1.25077585]
[1745485259863,1.239,596.0,594.59,1.25077585]
[1745485260056,1.239,596.0,594.6,0.91445403]
[1745485260259,1.239,596.0,594.61,0.91445403]